Workbook

Sheet Март-Апрель
C2: Квалификатор Sharkscope | K2: AVG | O2: Квалификатор Sharkscope | W2: AVG
A3: 9 | B3: $1200 Gtd 6 max 5$ R+A | C3: 65 | D3: 67 | E3: 68 | F3: 68 | G3: 66 | H3: 65 | I3: 66 | J3: 66 | K3: =AVERAGE(C3:J3) -> 66.375 | M3: 9 | N3: Middleweight $1000 Gtd 22$ | O3: 76 | P3: 74 | Q3: 73 | R3: 67 | S3: 70 | T3: 71 | U3: 71 | V3: 73 | W3: =AVERAGE(O3:V3) -> 71.875
A4: 9.45 | B4: $3000 Gtd 30$ Pacific Swordfish | C4: 78 | D4: 72 | E4: 76 | F4: 75 | G4: 73 | H4: 70 | I4: 70 | J4: 71 | K4: 73.125 | M4: 11.00/13.00 | N4: Middleweight $2000 Gtd 22$ | O4: 74 | P4: 74 | Q4: 69 | R4: 70 | S4: 72 | T4: 67 | U4: 71 | V4: 67 | W4: =AVERAGE(O4:V4) -> 70.5
A5: 10.3 | B5: $2500 Gtd 12$ Pacific Catfish | C5: 67 | D5: 68 | E5: 70 | F5: 70 | G5: 69 | H5: 72 | I5: 70 | J5: 69 | K5: 69.375 | M5: 11.00/13.00 | N5: Middleweight $2000 Gtd 22$ | O5: 74 | P5: 73 | Q5: 81 | R5: 74 | S5: 75 | T5: 74 | U5: 72 | V5: 76 | W5: =AVERAGE(O5:V5) -> 74.875
A6: 11.15 | B6: 2000$ Gtd Deepstack 22$ | C6: 77 | D6: 75 | E6: 72 | F6: 80 | G6: 73 | H6: 68 | I6: 71 | J6: 69 | K6: 73.125 | M6: 12 | N6: Middleweight $2000 Gtd PKO 22$ | O6: 77 | P6: 72 | Q6: 74 | R6: 66 | S6: 75 | T6: 72 | U6: 71 | V6: 70 | W6: =AVERAGE(O6:V6) -> 72.125
A7: 12 | B7: 5000$ Gtd Typhoon 55$ | C7: 73 | D7: 84 | E7: 75 | F7: 76 | G7: 78 | H7: 79 | I7: 80 | J7: 81 | K7: 78.25 | M7: 15 | N7: Middleweight $3000 Gtd 22$ | O7: 74 | P7: 77 | Q7: 68 | R7: 77 | S7: 72 | T7: 70 | U7: 72 | V7: 72 | W7: =AVERAGE(O7:V7) -> 72.75
A8: 12.3 | B8: 800$ Gtd 12$ | C8: 70 | D8: 72 | E8: 66 | F8: 66 | G8: 73 | H8: 64 | I8: 66 | J8: 64 | K8: 67.625
A9: 14 | B9: 5000$ Gtd Twister 55$ | C9: 81 | D9: 70 | E9: 80 | F9: 83 | G9: 80 | H9: 79 | I9: 78 | J9: 77 | K9: 78.5
A10: 14.15 | B10: $2000 Gtd 12$ R+A | C10: 71 | D10: 74 | E10: 74 | F10: 77 | G10: 74 | H10: 73 | I10: 72 | J10: 79 | K10: 74.25 | O10: Квалификатор Sharkscope | W10: AVG
A11: 15.15 | B11: $2000 Gtd 15$ Deepstack | C11: 74 | D11: 77 | E11: 70 | F11: 69 | G11: 67 | H11: 68 | I11: 68 | J11: 71 | K11: 70.5 | M11: 9 | N11: €150 The Joy of Six Max 11€ | O11: 73 | P11: 79 | Q11: 66 | R11: 77 | S11: 68 | T11: 62 | U11: 74 | V11: 65 | W11: =AVERAGE(O11:V11) -> 70.5
A12: 16 | B12: $3000/$2000 Gtd 5$ R+A | C12: 73 | D12: 68 | E12: 66 | F12: 71 | G12: 70 | H12: 70 | I12: 69 | J12: 72 | K12: 69.875 | M12: 10 | N12: €500 Gtd Lucky Koi 5.5€+R | O12: 69 | P12: 67 | Q12: 64 | R12: 79 | S12: 69 | T12: 65 | U12: 70 | V12: 64 | W12: =AVERAGE(O12:V12) -> 68.375
A13: 16.15 | B13: 600$ Gtd 12$ | C13: 66 | D13: 72 | E13: 73 | F13: 67 | G13: 72 | H13: 67 | I13: 67 | J13: 65 | K13: 68.625 | M13: 11 | N13: €500 Gtd Dragon Dance 6max 11€+R | O13: 73 | P13: 73 | Q13: 69 | R13: 76 | S13: 79 | T13: 82 | U13: 77 | V13: 72 | W13: =AVERAGE(O13:V13) -> 75.125
A14: 16.45 | B14: 2000$ Gtd Deepstack 22$ | C14: 75 | D14: 70 | E14: 73 | F14: 70 | G14: 73 | H14: 74 | I14: 74 | J14: 74 | K14: 72.875 | M14: 12 | N14: €400 Gtd Morning Freeze 22€ | O14: 77 | P14: 60 | Q14: 74 | R14: 73 | S14: 85 | T14: 86 | U14: 74 | V14: 80 | W14: =AVERAGE(O14:V14) -> 76.125
A15: 17.45 | B15: $2000 Gtd 12$ 2nd chance | C15: 70 | D15: 70 | E15: 74 | F15: 71 | G15: 68 | H15: 68 | I15: 72 | J15: 72 | K15: 70.625 | M15: 12.3 | N15: €200 Gtd 5.5€ | O15: 60 | P15: 71 | Q15: 70 | R15: 66 | S15: 65 | T15: 64 | U15: 70 | V15: 62 | W15: =AVERAGE(O15:V15) -> 66
M16: 13.2 | N16: €250 Gtd 11€ Big ante | O16: 67 | P16: 69 | Q16: 66 | R16: 66 | S16: 65 | T16: 70 | U16: 73 | V16: 73 | W16: 68.625
M17: 13.3 | N17: €250 Gtd 5.5€ DEEPSTACK!!! | O17: 61 | P17: 72 | Q17: 66 | R17: 72 | S17: 66 | T17: 67 | U17: 64 | V17: 62 | W17: 66.25
C18: Квалификатор Sharkscope | K18: AVG | M18: 14 | N18: €250 Gtd 11€ Lucky Leprechaun | O18: 62 | P18: 82 | Q18: 71 | R18: 61 | S18: 70 | T18: 68 | U18: 72 | V18: 73 | W18: 69.875
A19: 8 | B19: $6k Gtd Big 33$ | C19: 71 | D19: 72 | E19: 70 | F19: 71 | G19: 71 | H19: 74 | I19: 72 | J19: 68 | K19: =AVERAGE(C19:J19) -> 71.125 | M19: 15 | N19: €500 Gtd 22€ Cashapillar 6 max | O19: 73 | P19: 80 | Q19: 84 | R19: 76 | S19: 81 | T19: 56 | U19: 67 | V19: 62 | W19: 72.375
A20: 8.3 | B20: $12k Gtd Bounty Builder 22$ | C20: 66 | D20: 63 | E20: 65 | F20: 65 | G20: 65 | H20: 66 | I20: 67 | J20: 65 | K20: 65.25 | M20: 15.1 | N20: €250 Gtd 5.5€ | O20: 66 | P20: 64 | Q20: 74 | R20: 65 | S20: 67 | T20: 71 | U20: 68 | V20: 59 | W20: 66.75
A21: 10.3 | B21: $500 Gtd 4.4$+R 8 max/ Win the btn | C21: 64 | D21: 70 | E21: 64 | F21: 70 | G21: 68 | H21: 61 | I21: 72 | J21: 65 | K21: 66.75 | M21: 16 | N21: €2000 Gtd Break Away 11€+R | O21: 71 | P21: 78 | Q21: 69 | R21: 72 | S21: 73 | T21: 74 | U21: 78 | V21: 65 | W21: 72.5
A22: 11 | B22: $10k Gtd Big 22$ | C22: 70 | D22: 69 | E22: 67 | F22: 69 | G22: 67 | H22: 68 | I22: 71 | J22: 69 | K22: 68.75 | M22: 16.3 | N22: €750 Gtd turbo rebuy | O22: 62 | P22: 71 | Q22: 77 | R22: 68 | S22: 64 | T22: 63 | U22: 61 | V22: 65 | W22: 66.375
A23: 11.25 | B23: $6k Gtd 44$ PKO | C23: 70 | D23: 72 | E23: 71 | F23: 73 | G23: 72 | H23: 70 | I23: 73 | J23: 70 | K23: 71.375 | M23: 17.1 | N23: €500 Gtd 11€ DEEPSTACK | O23: 64 | P23: 75 | Q23: 74 | R23: 71 | S23: 74 | T23: 73 | U23: 62 | V23: 67 | W23: 70
A24: 12.3 | B24: $30k Gtd Bounty Builder 44$ | C24: 68 | D24: 70 | E24: 67 | F24: 66 | G24: 68 | H24: 68 | I24: 68 | J24: 67 | K24: =AVERAGE(C24:J24) -> 67.75 | M24: 18 | N24: €1500 Gtd 11€+R Good to go | O24: 70 | P24: 75 | Q24: 69 | R24: 78 | S24: 74 | T24: 76 | U24: 74 | V24: 75 | W24: 73.875
A25: 13 | B25: $12k Gtd Big 16,5$ | C25: 66 | D25: 69 | E25: 69 | F25: 68 | G25: 66 | H25: 69 | I25: 68 | J25: 68 | K25: =AVERAGE(C25:J25) -> 67.875 | M25: 18.1 | N25: €750 Gtd 5,5€+R 6-max Rebye | O25: 70 | P25: 74 | Q25: 67 | R25: 68 | S25: 74 | T25: 68 | U25: 75 | V25: 67 | W25: 70.375
A26: 14.15 | B26: 12k Gtd 16,5$ HOT | C26: 68 | D26: 67 | E26: 66 | F26: 67 | G26: 68 | H26: 68 | I26: 68 | J26: 66 | K26: =AVERAGE(C26:J26) -> 67.25
A27: 14.3 | B27: $25k Gtd Bounty Builder 22$ | C27: 66 | D27: 64 | E27: 64 | F27: 66 | G27: 65 | H27: 65 | I27: 66 | J27: 66 | K27: =AVERAGE(C27:J27) -> 65.25 | O27: Квалификатор Sharkscope | Y27: AVG
A28: 15 | B28: $15k Gtd Big 27$ | C28: 68 | D28: 66 | E28: 68 | F28: 65 | G28: 67 | H28: 68 | I28: 67 | J28: 65 | K28: =AVERAGE(C28:J28) -> 66.75 | M28: 12.3 | N28: $2000 Gtd 6max 44$ | O28: 64 | P28: 73 | Q28: 70 | R28: 71 | S28: 71 | T28: 71 | U28: 66 | V28: 70 | W28: 77 | X28: 74 | Y28: =AVERAGE(O28:X28) -> 70.7
B153: =COUNT(D154:D165) -> 12 | C153: blinds | D153: Buy-in
A154: 11 | B154: €500 Gtd 20€ | C154: 9 min | D154: 20
A155: 11.3 | B155: €1000 Gtd 10€ +R | C155: 9 min | D155: 30
A156: 12 | B156: €500 Gtd 20€ | C156: 12 min | D156: 20
A157: 12.3 | B157: €500 Gtd 10€ | C157: 9 min | D157: 10
A158: 14 | B158: €1000 Gtd 5€ +R | C158: 9 min | D158: 20
A159: 14.3 | B159: €1000 Gtd 20€ BRUNCH 6 max | C159: 12 min | D159: 20
A160: 15 | B160: €500 Gtd 2.25+2.25€ KO! | C160: 9 min | D160: 5
A161: 15.45 | B161: €300 Gtd 5€ | C161: 9 min | D161: 5
A162: 16.3 | B162: €1000 Gtd 9+9+2€ KO! | C162: 9 min | D162: 20
A163: 17 | B163: €1000 Gtd 5€ +R | C163: 9 min | D163: 20
A164: 17.3 | B164: €1000 Gtd 20€ | C164: 9 min | D164: 20
A165: 18 | B165: €1000 Gtd 5€ +R | C165: 9 min | D165: 20
C166: € | D166: =SUM(D154:D165) -> 210
C167: $ | D167: =D166*#REF! -> 
B202: =COUNT(D203:D210) -> 8 | C202: blinds | D202: Buy-in
A203: 8 | B203: $1000 Gtd Big3$ | C203: 12 min | D203: 3.3
A204: 12 | B204: $500 Gtd 10$ | C204: 10 min | D204: 11
A205: 12.3 | B205: $2000 Gtd 6max 44$ | C205: 12 min | D205: 44
A206: 12.3 | B206: $500 Gtd 8max 8.8$ | C206: 10 min | D206: 8.8
A207: 14.3 | B207: $7000 Gtd Early Special | C207: 12 min | D207: 22
A208: 14.45 | B208: $500 Gtd 5.5$ | C208: 12 min | D208: 5.5
A209: 17 | B209: $1500 Gtd 10$ | C209: 12 min | D209: 11
A210: 18.3 | B210: $2000 Gtd 10$ | C210: 12 min | D210: 11
